bitfinex/quotes_ETHUSD_20251212
["timestamp","ask_amount","ask_price","bid_price","bid_amount"]
[1765551037106,0.98597929,3226.4,3225.4,0.502]
[1765551037403,0.405504,3225.4,3225.0,0.502]
[1765551037782,0.4743,3225.7,3225.3,0.1953]
[1765551037783,0.405504,3225.7,3225.3,0.1953]
[1765551037981,0.405504,3225.7,3225.1,0.4752]
[1765551038194,0.879804,3225.9,3225.0,0.502]
[1765551038390,0.405504,3225.7,3225.0,0.502]
[1765551038588,0.98597929,3225.5,3225.1,0.502]
[1765551038789,0.405504,3225.3,3225.1,0.502]
[1765551038986,0.405504,3225.5,3225.4,0.1953]
[1765551039174,0.405504,3225.5,3225.1,0.502]
[1765551039379,0.405504,3225.5,3225.2,0.502]
[1765551039576,0.405504,3225.5,3225.1,0.502]
[1765551040701,0.98597929,3225.5,3225.4,0.1953]
[1765551041277,0.405504,3225.4,3224.6,0.4752]
[1765551041482,0.405504,3225.4,3224.2,0.4752]
[1765551041716,0.405504,3225.4,3224.3,0.502]
[1765551041911,0.405504,3225.4,3224.3,0.92807664]
[1765551042088,0.405504,3225.4,3225.3,0.1953]
[1765551042276,0.03091047,3226.6,3225.3,0.6973]
[1765551042480,6.19828306,3226.7,3225.4,0.4752]
[1765551042698,6.19828306,3226.7,3225.5,0.42607664]
[1765551042900,3.09914153,3226.7,3225.6,0.03100198]
[1765551043096,0.0307978,3227.1,3226.6,0.1953]
[1765551043300,0.0307978,3227.1,3226.7,0.502]
[1765551043527,1.49579472,3227.1,3225.4,3.1003619]
[1765551043836,0.99069692,3227.1,3225.7,0.4752]
[1765551044039,6.19713072,3227.3,3225.7,0.4752]
[1765551044202,6.19713072,3227.3,3227.0,0.1953]
[1765551044203,3.09856536,3227.3,3227.0,0.1953]
[1765551044398,3.09850022,3227.4,3227.1,0.502]
[1765551044745,0.001,3227.9,3227.2,0.4752]
[1765551045036,0.58047529,3227.7,3226.7,0.1953]
[1765551045213,0.001,3227.9,3226.8,0.502]
[1765551045407,0.001,3227.9,3226.8,0.9772]
[1765551045609,0.001,3227.9,3226.4,0.1953]
[1765551045610,0.405504,3227.6,3226.4,0.1953]
[1765551045824,0.405504,3227.6,3226.5,0.502]
[1765551046013,0.405504,3227.4,3226.5,0.502]
[1765551046201,0.405504,3227.4,3226.6,0.4752]
[1765551046403,0.405504,3227.5,3226.6,0.4752]
[1765551046710,0.405504,3227.3,3226.6,0.4752]
[1765551046906,3.09808538,3227.8,3226.6,0.4752]
[1765551047107,6.5060793,3227.8,3226.6,3.57443758]
[1765551047326,0.58047529,3227.7,3226.6,0.4752]
[1765551047531,0.58047529,3227.7,3226.7,0.4752]
[1765551047831,0.405504,3227.6,3226.7,0.4752]
[1765551048535,0.405504,3227.6,3227.5,0.1545]
[1765551048729,4.08425664,3227.6,3227.5,0.6565]
[1765551048941,0.001,3227.9,3227.5,0.6565]
[1765551048942,0.001,3227.9,3227.5,1.1317]
[1765551049130,0.001,3227.9,3227.6,0.4752]
[1765551049335,3.09899512,3227.9,3227.5,0.1545]
[1765551049502,3.09899512,3227.9,3227.7,0.502]
[1765551049698,0.405504,3227.8,3227.7,0.502]
[1765551049910,0.406504,3227.9,3227.7,0.502]
[1765551050129,3.50454236,3227.9,3227.7,0.502]
[1765551050339,3.50454236,3227.9,3226.4,0.1953]
[1765551050340,0.405504,3227.7,3227.2,0.1867]
[1765551050837,3.09818136,3227.7,3227.3,0.502]
[1765551051034,0.98597929,3227.6,3227.3,0.502]
[1765551051645,6.19636272,3227.7,3227.4,0.4641]
[1765551051646,0.98597929,3227.7,3227.4,0.4641]
[1765551052208,0.98597929,3227.7,3227.3,0.502]
[1765551052408,0.98597929,3227.7,3227.3,0.9661]
[1765551052629,0.98597929,3227.7,3227.4,0.4641]
[1765551053142,0.405504,3227.8,3227.4,0.4641]
[1765551053345,0.001,3227.9,3227.4,3.9876981]
[1765551053529,3.67953334,3227.9,3227.4,0.4641]
[1765551053728,0.405504,3227.8,3227.5,0.502]
[1765551054247,0.405504,3227.8,3227.5,0.9661]
[1765551055048,0.405504,3227.3,3226.7,0.4641]
[1765551055211,0.405504,3227.3,3226.8,0.502]
[1765551055543,0.405504,3227.3,3226.7,0.4641]
[1765551055740,0.405504,3227.3,3226.9,0.502]
[1765551055950,0.405504,3227.1,3226.9,0.502]
[1765551056148,0.98597929,3227.1,3226.1,0.1867]
[1765551056329,1.45647929,3227.1,3225.7,0.4641]
[1765551056657,1.45647929,3227.1,3225.8,0.502]
[1765551056828,0.98597929,3227.1,3225.8,0.502]
[1765551057016,0.405504,3226.8,3225.9,4.00161745]
[1765551057209,0.405504,3226.8,3225.9,0.4641]
[1765551057412,0.405504,3226.8,3225.8,0.502]
[1765551057621,0.405504,3226.8,3225.9,3.5640073]
[1765551058031,0.405504,3226.8,3226.0,0.4641]
[1765551058241,0.405504,3226.8,3226.1,0.1867]
[1765551058420,1.11400854,3226.8,3226.1,0.1867]
[1765551058624,1.11400854,3226.8,3225.5,3.10028999]
[1765551058625,1.11400854,3226.8,3225.5,0.4641]
[1765551058854,1.58450854,3226.8,3225.6,0.501]
[1765551059223,0.98597929,3226.6,3225.7,0.4641]
[1765551060364,0.98597929,3226.6,3225.6,0.501]
[1765551060561,0.405504,3226.4,3225.4,0.4641]
[1765551060778,0.405504,3226.4,3225.1,0.1545]
[1765551060779,0.98597929,3226.1,3225.1,0.1545]
[1765551061069,1.45647929,3226.1,3225.2,0.501]
[1765551061236,0.405504,3225.9,3225.2,0.501]
[1765551061867,0.405504,3225.7,3225.2,0.501]
[1765551062421,0.405504,3225.8,3225.2,0.501]
[1765551062928,0.98597929,3225.6,3224.1,0.002]
[1765551063130,0.98597929,3225.2,3224.2,0.501]
[1765551063359,8.78842796,3225.2,3224.2,0.501]
[1765551063559,0.405504,3225.0,3224.2,0.501]
[1765551063956,0.405504,3224.8,3224.2,0.501]
[1765551064532,0.876004,3224.8,3224.2,0.501]
[1765551064830,0.98597929,3224.6,3224.1,0.503]
[1765551065054,0.405504,3224.4,3224.1,0.002]
[1765551065259,0.98597929,3224.2,3224.1,0.002]
[1765551065556,8.78842796,3224.2,3224.1,0.002]
[1765551065766,9.25892796,3224.2,3224.1,0.002]
[1765551066075,0.405504,3223.8,3223.4,0.002]
[1765551066366,0.98597929,3223.4,3222.1,0.6877]
[1765551066855,0.98597929,3222.8,3222.1,0.6877]
[1765551067259,0.98597929,3222.9,3222.1,0.6877]
[1765551067573,1.18267929,3222.9,3222.1,0.6877]
[1765551068061,0.98597929,3222.9,3222.1,0.6877]
[1765551068580,0.1967,3223.9,3222.2,0.49513469]
[1765551068772,0.6672,3224.9,3223.1,0.1867]
[1765551068932,3.10067904,3225.1,3223.2,0.501]
[1765551069127,0.3297379,3225.0,3223.3,0.4951241]
[1765551069328,3.10048677,3225.3,3223.5,0.58047529]
[1765551069528,3.1001023,3225.7,3223.7,0.58047529]
[1765551069729,1.0902551,3225.6,3223.8,0.9651]
[1765551070152,0.03091047,3226.6,3225.5,0.1299]
[1765551070353,7.99914867,3227.1,3225.6,0.501]
[1765551070556,3.09818136,3227.7,3225.7,0.4641]
[1765551070727,6.19636272,3227.7,3225.7,0.4641]
[1765551070942,1.05097529,3227.6,3225.7,0.4641]
[1765551071138,0.7247338,3227.5,3225.7,0.4641]
[1765551071363,6.2277365,3227.4,3225.7,0.4641]
[1765551071666,0.58047529,3227.3,3225.8,0.501]
[1765551071963,3.82312736,3227.5,3225.8,0.501]
[1765551072269,0.001,3227.9,3227.4,0.1867]
[1765551072563,0.58147529,3227.9,3227.5,0.501]
[1765551072762,0.001,3227.9,3227.5,0.501]
[1765551072964,0.001,3227.9,3227.6,0.4641]
[1765551073655,0.001,3227.9,3227.6,6.66058512]
[1765551073982,0.001,3227.9,3227.7,0.4641]
[1765551074271,0.001,3227.9,3227.8,0.501]
[1765551074485,0.001,3227.9,3227.8,0.9651]
[1765551075446,0.001,3227.9,3225.8,0.03091047]
[1765551075763,0.001,3227.9,3227.0,3.09877864]
[1765551076065,0.001,3227.9,3226.9,0.501]
[1765551076269,0.001,3227.9,3227.0,3.09882689]
[1765551076670,0.001,3227.9,3227.8,0.1867]
[1765551076877,0.001,3227.9,3227.8,3.78578538]
[1765551077038,0.001,3227.9,3227.8,4.24988538]
[1765551077450,0.001,3227.9,3227.5,0.1815]
[1765551077651,0.405504,3227.0,3225.2,0.1815]
[1765551077861,0.43641447,3226.8,3225.6,0.502]
[1765551078174,0.405504,3226.6,3225.6,0.502]
[1765551078348,0.405504,3226.4,3225.6,0.502]
[1765551078554,0.405504,3226.2,3225.6,0.502]
[1765551078751,0.4725,3226.6,3224.6,0.4824]
[1765551078752,0.405504,3226.0,3224.6,0.4824]
[1765551079068,0.405504,3225.8,3224.7,0.502]
[1765551079269,0.878004,3226.3,3224.7,0.502]
[1765551079440,0.58047529,3226.1,3224.8,3.1009675]
[1765551079755,0.03091047,3225.8,3224.7,3.60304134]
[1765551080955,0.1922,3225.7,3224.7,0.502]
[1765551081276,0.03091047,3225.6,3224.7,0.502]
[1765551081455,0.03091047,3225.6,3224.3,3.28814439]
[1765551081456,0.61138576,3225.4,3224.3,0.1867]
[1765551081792,0.99122693,3225.3,3224.4,0.502]
[1765551081972,1.44712693,3225.3,3224.4,0.502]
[1765551082349,0.99122693,3225.3,3224.4,0.502]
[1765551082651,0.4559,3225.2,3224.4,0.502]
[1765551083048,0.03091047,3225.0,3224.4,0.502]
[1765551083581,0.58047529,3224.8,3224.4,0.502]
[1765551083882,1.2926986,3224.8,3224.4,0.502]
[1765551084178,0.03091047,3224.6,3224.4,0.502]
[1765551084377,0.03091047,3224.6,3223.4,0.1923]
[1765551084579,1.03637529,3224.5,3223.5,0.501]
[1765551084795,0.05,3224.3,3223.5,0.501]
[1765551084953,0.4559,3224.4,3223.4,0.502]
[1765551085450,0.98597929,3224.1,3223.4,0.502]
[1765551085649,0.405504,3223.9,3223.4,0.502]
[1765551086044,0.405504,3223.7,3223.4,0.502]
[1765551086550,0.405504,3223.9,3223.4,0.502]
[1765551087181,0.861404,3223.9,3223.4,0.502]
[1765551087381,0.861404,3223.9,3222.4,0.1923]
[1765551087585,0.98597929,3223.5,3222.5,0.502]
[1765551087804,0.98597929,3223.0,3222.1,0.002]
[1765551088180,0.405504,3222.8,3222.1,0.002]
[1765551088800,0.861404,3222.8,3222.1,0.002]
[1765551089103,0.597704,3223.2,3222.1,0.002]
[1765551089597,0.98597929,3223.0,3222.1,0.002]
[1765551089904,0.98597929,3223.1,3222.1,0.455]
[1765551090787,0.98597929,3223.1,3222.1,0.002]
[1765551091108,0.405504,3222.9,3222.2,0.502]
[1765551091601,0.405504,3222.5,3222.2,0.502]
[1765551092305,0.405504,3222.6,3222.3,0.501]
[1765551093193,0.03091047,3223.6,3222.3,0.954]
[1765551093400,3.1324573,3224.2,3223.1,0.1923]
[1765551093702,9.30549954,3223.9,3222.3,0.453]
[1765551093900,0.405504,3223.7,3222.4,0.502]
[1765551094205,0.405504,3223.5,3222.4,0.502]
[1765551094572,0.405504,3223.3,3222.4,0.502]
[1765551094781,0.1922,3222.5,3222.1,0.002]
[1765551095015,0.405504,3222.4,3222.1,0.002]
[1765551095331,0.861404,3222.4,3222.1,0.002]
[1765551095682,0.405504,3222.4,3222.1,0.002]
[1765551096076,0.405504,3222.2,3222.1,0.002]
[1765551096489,0.71921498,3222.4,3222.1,0.002]
[1765551096490,0.405504,3222.3,3222.1,0.002]
[1765551096693,0.861404,3222.3,3222.1,0.002]
[1765551097186,3.13391875,3222.7,3222.1,0.002]
[1765551097386,0.405504,3222.6,3222.1,0.002]
[1765551097594,0.03091047,3222.9,3222.1,3.10556599]
[1765551097595,0.405504,3222.9,3222.1,3.10556599]
[1765551097775,6.2046331,3223.4,3222.2,0.64015197]
[1765551097976,6.2046331,3223.4,3222.3,0.502]
[1765551097977,1.06728576,3223.3,3222.3,0.502]
[1765551098176,0.1922,3222.2,3222.1,0.002]
[1765551098408,0.405504,3222.2,3222.1,0.002]
[1765551099714,4.54534896,3222.2,3222.1,0.002]
[1765551099876,5.31021991,3222.2,3222.1,0.002]
[1765551100301,1.75085024,3222.2,3222.1,0.002]
[1765551100521,0.98597929,3222.2,3222.1,0.002]
[1765551100722,0.405504,3222.2,3222.1,0.002]
[1765551100906,0.58047529,3222.7,3222.1,0.002]
[1765551101091,0.405504,3222.6,3222.1,0.002]
[1765551101411,0.0307978,3222.5,3222.2,0.502]
[1765551101610,0.405504,3222.5,3222.2,0.502]
[1765551101814,3.10288473,3222.9,3222.2,0.502]
[1765551102022,0.1922,3223.4,3222.3,0.453]
[1765551102178,6.23581144,3223.2,3222.3,0.85904396]
[1765551102380,0.58047529,3223.1,3222.3,0.453]
[1765551102598,0.4363018,3223.0,3222.2,0.502]
[1765551103086,0.405504,3222.8,3222.2,0.502]
[1765551103405,0.405504,3222.6,3222.2,0.502]
[1765551103605,0.03091047,3222.9,3222.2,0.502]
[1765551103777,0.405504,3222.8,3222.2,0.502]
[1765551103974,4.08889007,3222.8,3222.2,0.502]
[1765551104178,0.03091047,3223.1,3222.3,0.453]
[1765551104584,0.0307978,3223.0,3222.3,0.8590528]
[1765551104798,7.30337482,3223.1,3222.1,3.10556002]
[1765551105000,0.405504,3223.0,3222.4,0.502]
[1765551105175,0.03091047,3223.1,3222.4,0.502]
[1765551105378,0.58047529,3223.2,3222.5,0.453]
[1765551105579,0.405504,3223.2,3222.5,0.453]
[1765551106003,3.50802213,3223.2,3222.5,0.453]
[1765551106203,3.50802213,3223.2,3222.5,3.55616632]
[1765551106596,3.50762585,3223.6,3223.1,0.1187]
[1765551106811,3.13293823,3223.7,3223.2,0.502]
[1765551107109,0.03091047,3223.7,3223.2,0.502]
[1765551107297,0.58047529,3223.6,3223.2,0.502]
[1765551107812,3.10172473,3224.1,3223.2,0.955]
[1765551108014,3.1016708,3224.1,3223.3,3.10241057]
[1765551108184,3.13267692,3224.0,3223.3,3.55541057]
[1765551108389,0.03091047,3224.6,3223.4,0.453]
[1765551108694,0.03091047,3224.6,3224.1,0.1923]
[1765551108695,3.13211056,3224.6,3224.1,0.1923]
[1765551108899,0.0307978,3224.5,3224.2,0.502]
[1765551109307,0.03091047,3224.6,3224.2,0.955]
[1765551109717,3.13189523,3224.8,3224.3,0.453]
[1765551110019,6.54916056,3224.8,3224.2,0.502]
[1765551110229,0.0307978,3224.7,3224.3,0.502]
[1765551110441,0.405504,3224.7,3224.4,0.502]
[1765551111029,0.34719104,3224.8,3224.4,0.502]
[1765551111336,0.58047529,3224.9,3224.0,0.4998]
[1765551111337,6.20174268,3224.9,3224.0,0.4998]
[1765551111543,3.13152056,3225.2,3224.2,6.20306477]
[1765551111702,0.4621,3225.1,3223.7,0.1904]
[1765551112023,0.405504,3224.8,3223.9,3.10183318]
[1765551112436,0.58047529,3225.3,3224.0,0.4998]
[1765551112437,3.10048677,3225.3,3224.0,0.4998]
[1765551112733,3.13131854,3225.4,3224.0,0.4998]
[1765551112961,0.03091047,3225.8,3224.1,0.98052995]
[1765551113097,0.4621,3226.1,3225.3,0.1904]
[1765551113436,6.66156123,3226.1,3225.4,0.502]
[1765551113613,0.1832,3226.5,3225.4,0.502]
[1765551113812,0.1832,3226.8,3225.5,0.4998]
[1765551114009,0.1922,3227.0,3225.6,6.20039682]
[1765551114209,0.001,3227.1,3225.7,0.67001968]
[1765551114407,0.001,3227.1,3225.8,2.42774]
[1765551114622,0.001,3227.1,3225.8,0.4998]
[1765551114819,0.001,3227.1,3225.9,0.4998]
[1765551115538,0.001,3227.1,3226.0,0.502]
[1765551115838,0.001,3227.1,3226.2,4.306909]
[1765551116010,0.001,3227.1,3226.6,6.19847516]
[1765551116214,0.001,3227.1,3226.7,1.0018]
[1765551116413,0.001,3227.1,3226.8,0.502]
[1765551116649,0.001,3227.1,3226.8,1.0018]
[1765551117158,0.001,3227.1,3226.6,3.09923758]
[1765551117317,0.001,3227.1,3226.9,0.502]
[1765551117873,0.001,3227.1,3227.0,0.4998]
[1765551118031,0.001,3227.1,3226.9,0.502]
[1765551118231,0.001,3227.1,3227.0,0.502]
[1765551118555,0.001,3227.1,3226.6,0.4998]
[1765551118762,0.001,3227.1,3226.7,0.501]
[1765551119061,0.001,3227.1,3226.8,0.501]
[1765551119234,0.406504,3227.1,3226.9,0.501]
[1765551119419,0.405504,3226.9,3225.8,3.59977722]
[1765551119619,0.405504,3226.7,3225.9,0.501]
[1765551120121,0.58047529,3226.6,3226.0,0.4998]
[1765551120358,0.001,3227.1,3226.0,0.4998]
[1765551120561,0.405504,3226.9,3226.0,0.4998]
[1765551120723,0.405504,3226.7,3226.1,0.501]
[1765551121445,0.405504,3226.9,3226.1,1.0008]
[1765551121849,0.405504,3226.9,3226.1,0.501]
[1765551122057,0.98597929,3226.7,3226.1,0.501]
[1765551122360,0.001,3227.1,3226.1,7.20021237]
[1765551122561,0.406504,3227.1,3226.2,0.72002124]
[1765551122849,0.001,3227.1,3226.2,1.21982124]
[1765551123055,0.001,3227.1,3226.3,3.503403]
[1765551123257,0.001,3227.1,3226.3,0.4998]
[1765551123557,0.001,3227.1,3226.4,0.4998]
[1765551124132,0.001,3227.1,3226.6,0.58047529]
[1765551124369,0.001,3227.9,3226.6,0.58047529]
[1765551124370,0.001,3227.9,3227.0,0.58047529]
[1765551124567,0.001,3227.9,3227.8,0.1585]
[1765551124730,0.001,3227.9,3227.1,0.4998]
[1765551124923,0.1842,3227.9,3227.1,0.4998]
[1765551125149,0.405504,3227.8,3227.2,0.502]
[1765551125562,0.001,3227.9,3227.1,0.4998]
[1765551125868,0.001,3227.9,3227.2,0.502]
[1765551126071,0.001,3227.9,3227.4,6.1969387]
[1765551126285,0.001,3227.9,3227.5,0.502]
[1765551126501,0.001,3227.9,3227.5,1.0018]
[1765551126649,0.001,3228.5,3228.0,0.58047529]
[1765551126846,0.001,3228.5,3228.4,0.1904]
[1765551127263,0.001,3228.5,3228.4,0.6902]
[1765551128164,0.001,3228.5,3228.4,3.7877096]
[1765551128379,0.001,3228.5,3228.4,4.36818489]
[1765551129041,0.001,3228.5,3228.4,32.52173337]
[1765551129272,0.001,3229.9,3228.6,0.405504]
[1765551129440,0.001,3229.9,3229.1,0.1381]
[1765551129845,0.001,3229.9,3229.1,0.6379]
[1765551130043,3.09648126,3229.5,3228.7,0.4998]
[1765551130245,0.405504,3229.4,3228.8,0.502]
[1765551130481,0.405504,3229.4,3228.4,0.1904]
[1765551130482,0.405504,3229.4,3228.9,0.502]
[1765551130683,0.405504,3229.5,3228.9,0.502]
[1765551130993,0.001,3229.6,3229.1,0.1904]
[1765551131485,0.001,3229.6,3229.1,0.502]
[1765551131642,0.406504,3229.2,3229.1,0.502]
[1765551132057,0.001,3229.2,3229.1,0.502]
[1765551132287,0.001,3229.2,3229.1,3.78923812]
[1765551132585,0.001,3229.2,3229.1,4.28903812]
[1765551133086,0.001,3229.2,3229.1,5.02764184]
[1765551133674,0.001,3229.2,3229.1,1.43100372]
[1765551133852,0.001,3229.2,3229.1,4.28903812]
[1765551134378,0.001,3229.2,3229.1,0.6902]
[1765551134672,0.001,3229.2,3229.1,0.501]
[1765551134888,0.001,3229.2,3229.1,4.28803812]
[1765551135170,0.001,3229.2,3229.1,0.501]
[1765551135376,0.001,3229.2,3229.1,4.09763812]
[1765551135573,0.001,3229.2,3229.1,4.81709685]
[1765551136075,0.001,3229.2,3229.1,1.22045873]
[1765551136288,0.001,3229.2,3229.1,4.09763812]
[1765551136487,0.001,3229.2,3228.8,0.1904]
[1765551136681,0.001,3229.2,3228.9,0.501]
[1765551137049,0.001,3229.2,3228.8,0.1904]
[1765551137379,0.001,3229.2,3228.0,0.1381]
[1765551137380,0.001,3229.2,3228.9,0.501]
[1765551137596,0.001,3229.2,3227.3,3.09847159]
[1765551137597,0.405504,3229.1,3227.4,3.09845799]
[1765551137760,0.001,3229.2,3228.9,3.09702409]
[1765551137947,0.001,3229.2,3229.0,0.501]
[1765551138149,0.001,3229.2,3229.1,0.1841]
[1765551138491,0.001,3229.2,3229.0,3.59791082]
[1765551138776,0.001,3229.2,3229.0,0.501]
[1765551139153,0.4626,3229.2,3229.0,0.501]
[1765551139354,0.001,3229.2,3229.0,0.501]
[1765551139659,0.001,3229.2,3229.1,0.1841]
[1765551139975,0.001,3229.2,3229.1,1.01659974]
[1765551140351,0.001,3229.2,3229.0,3.09689736]
[1765551140549,0.001,3229.2,3229.1,4.27333812]
[1765551141365,0.001,3229.6,3229.2,0.58047529]
[1765551141603,0.001,3229.6,3229.2,1.06237529]
[1765551142090,0.001,3229.6,3229.3,0.4819]
[1765551142390,0.001,3229.6,3229.4,3.09655044]
[1765551142555,0.001,3229.6,3229.5,0.70284413]
[1765551142989,0.001,3229.6,3229.1,0.77407529]
[1765551143198,0.001,3229.6,3228.8,0.1936]
[1765551143489,0.4916,3229.6,3228.9,0.501]
[1765551143697,0.4916,3229.6,3228.1,0.1841]
[1765551143698,0.405504,3229.5,3228.1,0.1841]
[1765551143888,0.405504,3229.5,3228.3,3.09758663]
[1765551144058,0.405504,3229.5,3228.2,0.501]
[1765551144059,0.001,3229.6,3228.5,0.58047529]
[1765551144383,0.001,3229.6,3228.6,0.58047529]
[1765551144554,0.001,3229.6,3228.7,0.501]
[1765551144751,0.001,3229.6,3228.7,0.9829]
[1765551145154,0.001,3229.6,3229.5,0.1936]
[1765551145380,0.001,3229.6,3229.5,0.501]
[1765551146173,0.001,3229.6,3229.0,0.1936]
[1765551146373,0.001,3229.6,3229.1,0.501]
[1765551147287,0.001,3229.6,3229.1,0.9829]
[1765551147788,0.001,3229.6,3229.1,0.501]
[1765551148400,3.58712758,3229.5,3229.1,0.501]
[1765551148573,0.001,3229.6,3229.1,0.501]
[1765551148777,6.19379648,3229.6,3229.1,0.501]
[1765551148979,1.47657929,3229.5,3227.8,0.4819]
[1765551149180,0.405504,3229.3,3227.9,0.501]
[1765551149692,0.405504,3229.2,3228.4,3.09746752]
[1765551150002,0.58047529,3229.5,3228.9,3.09700469]
[1765551150207,0.405504,3229.4,3229.0,0.501]
[1765551150403,0.001,3229.6,3229.0,7.05462581]
[1765551150712,3.0974193,3229.6,3229.0,0.86080047]
[1765551150910,6.1938386,3229.6,3229.0,0.501]
[1765551151114,0.405504,3229.4,3228.1,0.1936]
[1765551151282,0.405504,3229.4,3228.2,0.501]
[1765551151483,0.405504,3229.2,3228.2,0.501]
[1765551151917,0.1319,3228.3,3228.2,0.501]
[1765551152114,0.537404,3229.0,3228.2,0.501]
[1765551152418,0.1819,3228.5,3228.2,0.501]
[1765551152626,0.405504,3228.4,3226.9,0.4819]
[1765551152787,0.98597929,3228.4,3227.3,3.09854104]
[1765551153117,0.98597929,3228.4,3227.4,0.8108541]
[1765551153118,0.4906,3228.3,3227.4,0.8108541]
[1765551153280,0.4906,3228.3,3227.4,0.501]
[1765551153917,0.4906,3228.3,3227.4,3.599468]
[1765551154153,0.4906,3228.3,3227.4,0.501]
[1765551154624,3.58822458,3228.3,3227.4,0.501]
[1765551154840,0.6725,3228.8,3227.4,4.08136935]
[1765551155115,3.09722179,3228.7,3227.5,0.40813694]
[1765551155317,3.09722179,3228.7,3227.5,0.89003694]
[1765551155318,0.405504,3228.7,3227.5,0.89003694]
[1765551155705,0.405504,3228.8,3227.6,0.4819]
[1765551155907,0.1319,3229.0,3227.7,0.03098181]
[1765551156100,6.1931739,3229.4,3227.9,7.786045]
[1765551156299,3.27838621,3229.5,3228.0,2.05766107]
[1765551156631,0.001,3229.6,3228.6,0.58047529]
[1765551156830,0.001,3229.6,3228.8,7.78056568]
[1765551157133,0.001,3229.6,3229.5,0.1936]
[1765551157332,0.001,3229.6,3229.5,0.6946]
[1765551157528,0.001,3229.6,3229.5,8.00175839]
[1765551157729,0.001,3229.6,3229.5,4.68380839]
[1765551157950,0.001,3229.6,3229.5,9.93972139]
[1765551158463,0.001,3229.6,3229.5,6.19753939]
[1765551158757,0.001,3230.2,3230.1,27.79382697]
[1765551159046,0.001,3230.2,3230.1,17.83783012]
[1765551159240,0.001,3230.2,3230.1,18.31973012]
[1765551159553,0.001,3230.2,3230.1,14.82655812]
[1765551159703,0.001,3230.2,3230.1,18.93783942]
[1765551159902,0.001,3230.2,3230.1,17.91119831]
[1765551160629,0.001,3230.2,3230.1,22.15201769]
[1765551160958,0.001,3230.2,3230.1,14.68432369]
[1765551161439,0.001,3230.2,3230.1,13.73972369]
[1765551161743,0.001,3230.2,3230.1,13.22208563]
[1765551161947,0.001,3230.2,3230.1,1.08147529]
[1765551162449,0.001,3230.2,3230.1,0.501]
[1765551162618,0.001,3230.2,3230.1,3.59687938]
[1765551163025,0.001,3230.2,3230.1,4.27237938]
[1765551163225,0.001,3230.2,3230.1,3.79047938]
[1765551163426,0.001,3230.2,3230.1,5.54150799]
[1765551163624,0.001,3230.2,3230.1,10.23609999]
[1765551164055,0.001,3230.2,3230.1,10.04830799]
[1765551164238,0.001,3230.2,3230.1,5.54150799]
[1765551164440,0.001,3230.2,3230.1,16.94628199]
[1765551164613,0.001,3230.2,3230.1,8.09241099]
[1765551164950,0.001,3230.2,3230.1,11.61375399]
[1765551166241,0.001,3230.2,3230.1,15.51249899]
[1765551166542,0.001,3230.2,3230.1,9.55754699]
[1765551167210,0.001,3230.2,3230.1,15.14621899]
[1765551167412,0.001,3230.2,3230.1,14.81181299]
[1765551168250,0.002,3230.9,3230.6,11.40838729]
[1765551168544,0.002,3230.9,3230.8,25.83344863]
[1765551168744,0.002,3230.9,3230.8,25.66703163]
[1765551168945,0.002,3230.9,3230.8,23.20166563]
[1765551169449,0.002,3230.9,3230.8,22.09338363]
[1765551169630,0.002,3230.9,3230.8,21.49129563]
[1765551169832,0.002,3230.9,3230.8,24.17208886]
[1765551170343,0.002,3230.9,3230.8,27.89371615]
[1765551170533,0.002,3230.9,3230.8,25.30092415]
[1765551171236,0.002,3230.9,3230.1,0.68865332]
[1765551171237,0.6925,3230.9,3230.1,0.68865332]
[1765551171427,0.1973,3230.9,3230.2,0.5]
[1765551171626,0.1973,3230.9,3230.4,3.09550665]
[1765551171828,0.6925,3230.9,3230.2,0.5]
[1765551172220,0.1973,3230.9,3230.2,0.5]
[1765551172416,0.4952,3230.8,3230.2,0.5]
[1765551172837,0.4952,3230.8,3230.2,3.59570038]
[1765551173047,0.4952,3230.8,3230.3,3.09567439]
[1765551173238,0.4952,3230.8,3230.2,0.498]
[1765551173643,3.59044411,3230.8,3230.2,0.498]
[1765551173948,3.96921852,3230.8,3230.2,0.498]
[1765551174178,3.59044439,3230.8,3230.2,0.498]
[1765551174345,0.4952,3230.7,3230.2,0.498]
[1765551174527,0.405504,3230.6,3230.2,0.498]
[1765551174917,0.405504,3230.4,3230.2,0.498]
[1765551175115,3.5011917,3230.3,3230.2,0.498]
[1765551175317,0.405504,3230.7,3230.2,0.498]
[1765551175528,0.4952,3230.6,3230.2,0.498]
[1765551176657,0.405504,3230.5,3230.2,0.498]
[1765551177151,0.405504,3230.3,3230.2,0.498]
[1765551177321,3.5011917,3230.3,3230.2,0.498]
[1765551177522,3.9963917,3230.3,3230.2,0.498]
[1765551178832,3.9963917,3230.3,3228.4,7.23065902]
[1765551178833,10.76824239,3230.3,3228.4,7.23065902]
[1765551179175,0.405504,3230.1,3228.5,1.2230659]
[1765551179375,0.405504,3229.8,3228.5,3.59740152]
[1765551179532,0.405504,3229.8,3228.5,0.5]
[1765551179860,0.405504,3229.6,3228.5,0.5]
[1765551180276,0.405504,3229.4,3228.5,0.5]
[1765551180733,0.405504,3229.2,3228.5,0.5]
[1765551180938,0.405504,3229.0,3228.5,0.5]
[1765551181447,0.98597929,3228.6,3226.4,3.0994297]